[Event "Open NK Rapid 2025"]
[Site "Helmond, Netherlands"]
[Date "2025.05.03"]
[Round "1.18"]
[White "Van Heinsbergen, Jonathan"]
[Black "Beeke, Bob"]
[Result "1/2-1/2"]
[TimeControl "15+5"]
[WhiteFideId "276219"]
[BlackFideId "1011634"]
[WhiteElo "1756"]
[BlackElo "2217"]

1. e4 {[%clk 00:15:08]} {[%emt 00:00:02]} e5 {[%clk 00:15:09]} {[%emt
00:00:01]} 2. Nf3 {[%clk 00:15:09]} {[%emt 00:00:03]} Nc6 {[%clk 00:15:13]}
{[%emt 00:00:01]} 3. Bb5 {[%clk 00:15:13]} {[%emt 00:00:02]} Nf6 {[%clk
00:15:16]} {[%emt 00:00:02]} 4. O-O {[%clk 00:15:13]} {[%emt 00:00:04]} Nxe4
{[%clk 00:15:20]} {[%emt 00:00:02]} 5. Re1 {[%clk 00:15:16]} {[%emt 00:00:02]}
Nd6 {[%clk 00:15:24]} {[%emt 00:00:01]} 6. Nxe5 {[%clk 00:15:11]} {[%emt
00:00:10]} Be7 {[%clk 00:15:28]} 7. Bxc6 {[%clk 00:15:02]} {[%emt 00:00:14]}
dxc6 {[%clk 00:15:28]} {[%emt 00:00:05]} 8. d4 {[%clk 00:14:47]} {[%emt
00:00:20]} O-O {[%clk 00:15:30]} {[%emt 00:00:03]} 9. Bf4 {[%clk 00:14:29]}
{[%emt 00:00:23]} Re8 {[%clk 00:14:54]} {[%emt 00:00:41]} 10. Nd2 {[%clk
00:14:03]} {[%emt 00:00:31]} Bf8 {[%clk 00:14:28]} {[%emt 00:00:30]} 11. Ndf3
{[%clk 00:12:51]} {[%emt 00:01:18]} Bf5 {[%clk 00:14:03]} {[%emt 00:00:30]} 12.
c3 {[%clk 00:12:41]} {[%emt 00:00:15]} f6 {[%clk 00:13:29]} {[%emt 00:00:38]}
13. Qb3+ {[%clk 00:11:06]} {[%emt 00:01:40]} Be6 {[%clk 00:13:14]} {[%emt
00:00:20]} 14. Nxc6 {[%clk 00:10:58]} {[%emt 00:00:14]} Qd7 {[%clk 00:13:12]}
{[%emt 00:00:07]} 15. d5 {[%clk 00:10:34]} {[%emt 00:00:28]} Bf7 {[%clk
00:12:58]} {[%emt 00:00:19]} 16. Ncd4 {[%clk 00:10:21]} {[%emt 00:00:19]} c5
{[%clk 00:10:10]} {[%emt 00:02:52]} 17. Bxd6 {[%clk 00:07:51]} {[%emt
00:02:35]} Bxd6 {[%clk 00:09:25]} {[%emt 00:00:51]} 18. Ne6 {[%clk 00:07:25]}
{[%emt 00:00:30]} b5 {[%clk 00:09:16]} {[%emt 00:00:15]} 19. a4 {[%clk
00:06:39]} {[%emt 00:00:51]} Rab8 {[%clk 00:08:38]} {[%emt 00:00:43]} 20. axb5
{[%clk 00:06:08]} {[%emt 00:00:37]} Rxb5 {[%clk 00:08:39]} {[%emt 00:00:03]} 21.
Rxa7 {[%clk 00:06:04]} {[%emt 00:00:08]} Qxa7 {[%clk 00:05:32]} {[%emt
00:03:13]} 22. Qxb5 {[%clk 00:06:07]} {[%emt 00:00:02]} Rb8 {[%clk 00:05:02]}
{[%emt 00:00:35]} 23. Qc6 {[%clk 00:05:54]} {[%emt 00:00:18]} Bf8 {[%clk
00:05:06]} {[%emt 00:00:01]} 24. Nxf8 {[%clk 00:05:11]} {[%emt 00:00:47]} Rxf8
{[%clk 00:05:09]} {[%emt 00:00:03]} 25. d6 {[%clk 00:04:51]} {[%emt 00:00:25]}
Rd8 {[%clk 00:05:02]} {[%emt 00:00:12]} 26. h3 {[%clk 00:04:28]} {[%emt
00:00:28]} Qb8 {[%clk 00:04:54]} {[%emt 00:00:13]} 27. d7 {[%clk 00:04:04]}
{[%emt 00:00:29]} h6 {[%clk 00:04:40]} {[%emt 00:00:19]} 28. Qxc5 {[%clk
00:03:37]} {[%emt 00:00:32]} Rxd7 {[%clk 00:04:36]} {[%emt 00:00:09]} 29. b4
{[%clk 00:03:33]} {[%emt 00:00:09]} Rc7 {[%clk 00:04:36]} {[%emt 00:00:05]} 30.
Qd6 {[%clk 00:02:52]} {[%emt 00:00:46]} Qc8 {[%clk 00:04:36]} {[%emt 00:00:05]}
31. Rd1 {[%clk 00:02:44]} {[%emt 00:00:13]} Rxc3 {[%clk 00:04:33]} {[%emt
00:00:08]} 32. Qd8+ {[%clk 00:02:48]} Qxd8 {[%clk 00:04:21]} {[%emt 00:00:17]}
33. Rxd8+ {[%clk 00:02:52]} {[%emt 00:00:02]} Kh7 {[%clk 00:04:25]} 34. b5
{[%clk 00:02:53]} {[%emt 00:00:04]} Rb3 {[%clk 00:04:25]} {[%emt 00:00:05]} 35.
Rb8 {[%clk 00:02:52]} {[%emt 00:00:05]} Bd5 {[%clk 00:04:17]} {[%emt 00:00:14]}
36. Nd4 {[%clk 00:02:40]} {[%emt 00:00:16]} Rb4 {[%clk 00:04:15]} {[%emt
00:00:08]} 37. Nf5 {[%clk 00:02:40]} {[%emt 00:00:05]} Be6 {[%clk 00:03:36]}
{[%emt 00:00:43]} 38. Nd6 {[%clk 00:02:24]} {[%emt 00:00:22]} Rd4 {[%clk
00:03:34]} {[%emt 00:00:07]} 39. Ne8 {[%clk 00:02:26]} {[%emt 00:00:03]} Kg6
{[%clk 00:02:52]} {[%emt 00:00:47]} 40. b6 {[%clk 00:02:19]} {[%emt 00:00:12]}
Kf7 {[%clk 00:02:26]} {[%emt 00:00:30]} 41. Nc7 {[%clk 00:02:22]} {[%emt
00:00:03]} Rb4 {[%clk 00:02:20]} {[%emt 00:00:11]} 42. b7 {[%clk 00:01:58]}
{[%emt 00:00:29]} Bc4 {[%clk 00:02:06]} {[%emt 00:00:20]} 43. Kh2 {[%clk
00:01:47]} {[%emt 00:00:14]} Bd3 {[%clk 00:01:39]} {[%emt 00:00:32]} 44. Nd5
{[%clk 00:01:38]} {[%emt 00:00:14]} Rb5 {[%clk 00:01:28]} {[%emt 00:00:16]} 45.
Nf4 {[%clk 00:01:38]} {[%emt 00:00:06]} Be4 {[%clk 00:01:28]} {[%emt 00:00:05]}
46. Kg3 {[%clk 00:01:31]} {[%emt 00:00:11]} Rxb7 {[%clk 00:01:30]} {[%emt
00:00:04]} 47. Rxb7+ {[%clk 00:01:35]} {[%emt 00:00:01]} 1/2-1/2

[Event "Open NK Rapid 2025"]
[Site "Helmond, Netherlands"]
[Date "2025.05.03"]
[Round "1.19"]
[White "Van Batenburg, Mees"]
[Black "Cornelissen, Jort"]
[Result "1-0"]
[TimeControl "15+5"]
[WhiteFideId "1078259"]
[BlackFideId "1098160"]
[WhiteElo "2217"]
[BlackElo "1750"]

1. e4 {[%clk 00:15:09]} {[%emt 00:00:01]} c5 {[%clk 00:15:09]} {[%emt
00:00:01]} 2. b4 {[%clk 00:15:13]} {[%emt 00:00:02]} cxb4 {[%clk 00:15:10]}
{[%emt 00:00:03]} 3. a3 {[%clk 00:15:17]} {[%emt 00:00:02]} d5 {[%clk
00:13:59]} {[%emt 00:01:15]} 4. exd5 {[%clk 00:15:20]} {[%emt 00:00:02]} Qxd5
{[%clk 00:14:02]} {[%emt 00:00:02]} 5. Nf3 {[%clk 00:15:24]} {[%emt 00:00:01]}
Bg4 {[%clk 00:10:39]} {[%emt 00:03:29]} 6. axb4 {[%clk 00:15:28]} {[%emt
00:00:01]} Bxf3 {[%clk 00:10:22]} {[%emt 00:00:22]} 7. Qxf3 {[%clk 00:15:31]}
{[%emt 00:00:02]} Qxf3 {[%clk 00:09:34]} {[%emt 00:00:52]} 8. gxf3 {[%clk
00:15:33]} {[%emt 00:00:02]} e6 {[%clk 00:09:24]} {[%emt 00:00:16]} 9. b5
{[%clk 00:15:34]} {[%emt 00:00:05]} Nf6 {[%clk 00:08:57]} {[%emt 00:00:32]} 10.
Bb2 {[%clk 00:15:37]} {[%emt 00:00:02]} Be7 {[%clk 00:08:19]} {[%emt 00:00:42]}
11. f4 {[%clk 00:15:36]} {[%emt 00:00:06]} g6 {[%clk 00:07:53]} {[%emt
00:00:31]} 12. Bg2 {[%clk 00:15:38]} {[%emt 00:00:03]} a5 {[%clk 00:07:25]}
{[%emt 00:00:34]} 13. Bxb7 {[%clk 00:15:22]} {[%emt 00:00:20]} Ra7 {[%clk
00:07:28]} {[%emt 00:00:02]} 14. Bf3 {[%clk 00:15:19]} {[%emt 00:00:07]} O-O
{[%clk 00:07:19]} {[%emt 00:00:15]} 15. b6 {[%clk 00:15:15]} {[%emt 00:00:09]}
Ra6 {[%clk 00:07:14]} {[%emt 00:00:09]} 16. Bd4 {[%clk 00:15:04]} {[%emt
00:00:16]} Rd8 {[%clk 00:07:02]} {[%emt 00:00:18]} 17. c3 {[%clk 00:15:08]}
{[%emt 00:00:01]} Nfd7 {[%clk 00:06:55]} {[%emt 00:00:12]} 18. Be2 {[%clk
00:14:36]} {[%emt 00:00:38]} Nc5 {[%clk 00:06:27]} {[%emt 00:00:32]} 19. Bxc5
{[%clk 00:14:15]} {[%emt 00:00:25]} Bxc5 {[%clk 00:06:24]} {[%emt 00:00:08]} 20.
Bxa6 {[%clk 00:14:19]} {[%emt 00:00:02]} Nxa6 {[%clk 00:06:19]} {[%emt
00:00:10]} 21. Rxa5 {[%clk 00:14:22]} {[%emt 00:00:02]} Bxb6 {[%clk 00:06:00]}
{[%emt 00:00:25]} 22. Rxa6 {[%clk 00:14:26]} {[%emt 00:00:01]} Bc7 {[%clk
00:05:56]} {[%emt 00:00:08]} 23. f5 {[%clk 00:14:27]} {[%emt 00:00:03]} exf5
{[%clk 00:05:56]} {[%emt 00:00:05]} 24. d4 {[%clk 00:14:29]} {[%emt 00:00:03]}
Rb8 {[%clk 00:05:51]} {[%emt 00:00:11]} 25. Nd2 {[%clk 00:14:02]} {[%emt
00:00:32]} Rb2 {[%clk 00:05:45]} {[%emt 00:00:11]} 26. Ke2 {[%clk 00:13:57]}
{[%emt 00:00:09]} Bf4 {[%clk 00:05:38]} {[%emt 00:00:13]} 27. Rd1 {[%clk
00:14:00]} {[%emt 00:00:02]} Bxh2 {[%clk 00:05:28]} {[%emt 00:00:15]} 28. c4
{[%clk 00:14:02]} {[%emt 00:00:03]} Kg7 {[%clk 00:05:13]} {[%emt 00:00:20]} 29.
d5 {[%clk 00:14:03]} {[%emt 00:00:04]} Rc2 {[%clk 00:05:08]} {[%emt 00:00:10]}
30. Kd3 {[%clk 00:14:02]} {[%emt 00:00:06]} Rb2 {[%clk 00:05:05]} {[%emt
00:00:08]} 31. c5 {[%clk 00:14:04]} {[%emt 00:00:03]} Rb5 {[%clk 00:04:59]}
{[%emt 00:00:11]} 32. Kc4 {[%clk 00:14:06]} {[%emt 00:00:03]} Rb7 {[%clk
00:04:42]} {[%emt 00:00:22]} 33. c6 {[%clk 00:13:58]} {[%emt 00:00:13]} Rc7
{[%clk 00:04:46]} {[%emt 00:00:02]} 34. Nf3 {[%clk 00:14:00]} {[%emt 00:00:01]}
Bd6 {[%clk 00:04:47]} {[%emt 00:00:04]} 35. Nd4 {[%clk 00:14:03]} {[%emt
00:00:02]} h5 {[%clk 00:04:47]} {[%emt 00:00:06]} 36. Nb5 {[%clk 00:14:07]}
{[%emt 00:00:01]} Bf4 {[%clk 00:04:47]} {[%emt 00:00:05]} 37. Nxc7 {[%clk
00:14:10]} {[%emt 00:00:03]} Bxc7 {[%clk 00:04:50]} {[%emt 00:00:01]} 38. d6
{[%clk 00:14:13]} {[%emt 00:00:01]} Bxd6 {[%clk 00:04:53]} {[%emt 00:00:03]} 39.
Rxd6 {[%clk 00:14:17]} {[%emt 00:00:01]} h4 {[%clk 00:04:57]} {[%emt 00:00:02]}
40. c7 {[%clk 00:14:19]} {[%emt 00:00:01]} h3 {[%clk 00:05:00]} {[%emt
00:00:02]} 41. c8=Q {[%clk 00:14:22]} {[%emt 00:00:03]} h2 {[%clk 00:05:03]}
{[%emt 00:00:02]} 42. f4 {[%clk 00:13:39]} {[%emt 00:00:48]} h1=Q {[%clk
00:05:01]} {[%emt 00:00:06]} 43. Rxg6+ {[%clk 00:13:40]} {[%emt 00:00:04]} fxg6
{[%clk 00:05:02]} {[%emt 00:00:04]} 44. Ra7+ {[%clk 00:13:44]} {[%emt
00:00:02]} Kf6 {[%clk 00:04:36]} {[%emt 00:00:31]} 45. Qa6+ {[%clk 00:13:47]}
{[%emt 00:00:03]} Qc6+ {[%clk 00:04:36]} {[%emt 00:00:04]} 46. Qxc6# {[%clk
00:13:49]} {[%emt 00:00:02]} 1-0

[Event "Open NK Rapid 2025"]
[Site "Helmond, Netherlands"]
[Date "2025.05.03"]
[Round "1.20"]
[White "Elangkumaran, Anumitra"]
[Black "Smeets, Kobe"]
[Result "0-1"]
[TimeControl "15+5"]
[WhiteFideId "40109070"]
[BlackFideId "1063910"]
[WhiteElo "1750"]
[BlackElo "2192"]

1. e4 {[%clk 00:15:09]} c5 {[%clk 00:15:08]} {[%emt 00:00:03]} 2. Nc3 {[%clk
00:15:09]} {[%emt 00:00:05]} Nc6 {[%clk 00:15:02]} {[%emt 00:00:11]} 3. f4
{[%clk 00:15:09]} {[%emt 00:00:04]} g6 {[%clk 00:15:04]} {[%emt 00:00:03]} 4.
Nf3 {[%clk 00:15:10]} {[%emt 00:00:04]} Bg7 {[%clk 00:15:08]} {[%emt 00:00:01]}
5. Bb5 {[%clk 00:15:06]} {[%emt 00:00:09]} Nd4 {[%clk 00:15:02]} {[%emt
00:00:12]} 6. Nxd4 {[%clk 00:14:57]} {[%emt 00:00:13]} cxd4 {[%clk 00:14:55]}
{[%emt 00:00:12]} 7. Ne2 {[%clk 00:14:50]} {[%emt 00:00:12]} a6 {[%clk
00:14:16]} {[%emt 00:00:44]} 8. Bc4 {[%clk 00:14:14]} {[%emt 00:00:41]} e6
{[%clk 00:14:20]} {[%emt 00:00:01]} 9. c3 {[%clk 00:14:02]} {[%emt 00:00:17]}
b5 {[%clk 00:14:01]} {[%emt 00:00:24]} 10. Bd3 {[%clk 00:13:52]} {[%emt
00:00:15]} dxc3 {[%clk 00:13:52]} {[%emt 00:00:14]} 11. dxc3 {[%clk 00:13:51]}
{[%emt 00:00:06]} Ne7 {[%clk 00:13:54]} {[%emt 00:00:03]} 12. O-O {[%clk
00:13:43]} {[%emt 00:00:13]} Bb7 {[%clk 00:13:49]} {[%emt 00:00:10]} 13. Be3
{[%emt 00:00:36]} f5 {[%clk 00:13:37]} 14. exf5 {[%clk 00:13:23]} {[%emt
00:00:12]} Nxf5 {[%clk 00:13:34]} {[%emt 00:00:07]} 15. Bd2 {[%clk 00:12:53]}
{[%emt 00:00:35]} Qb6+ {[%clk 00:13:15]} {[%emt 00:00:24]} 16. Nd4 {[%clk
00:12:02]} {[%emt 00:00:56]} Bxd4+ {[%clk 00:13:06]} {[%emt 00:00:14]} 17. cxd4
{[%clk 00:11:46]} {[%emt 00:00:21]} Qxd4+ {[%clk 00:13:09]} {[%emt 00:00:02]}
18. Rf2 {[%clk 00:11:28]} {[%emt 00:00:23]} Qxd3 {[%clk 00:13:08]} {[%emt
00:00:06]} 19. Rc1 {[%clk 00:10:39]} {[%emt 00:00:55]} O-O {[%clk 00:13:06]}
{[%emt 00:00:06]} 20. Qg4 {[%clk 00:10:11]} {[%emt 00:00:33]} Rac8 {[%clk
00:12:58]} {[%emt 00:00:13]} 21. Rcf1 {[%clk 00:09:32]} {[%emt 00:00:44]} Rc2
{[%clk 00:12:30]} {[%emt 00:00:33]} 22. Bc3 {[%clk 00:08:53]} {[%emt 00:00:44]}
Rxf2 {[%clk 00:12:32]} {[%emt 00:00:03]} 23. Rxf2 {[%clk 00:08:48]} {[%emt
00:00:10]} Qb1+ {[%clk 00:12:36]} 24. Rf1 {[%clk 00:08:42]} {[%emt 00:00:11]}
Qxf1+ {[%clk 00:12:39]} {[%emt 00:00:02]} 25. Kxf1 {[%clk 00:08:44]} {[%emt
00:00:02]} Ne3+ {[%clk 00:12:43]} {[%emt 00:00:02]} 26. Ke2 {[%clk 00:08:45]}
{[%emt 00:00:04]} Nxg4 {[%clk 00:12:46]} {[%emt 00:00:02]} 27. h3 {[%clk
00:08:44]} {[%emt 00:00:06]} Nf6 {[%clk 00:12:47]} {[%emt 00:00:04]} 28. g3
{[%clk 00:08:29]} {[%emt 00:00:21]} Ne4 {[%clk 00:12:42]} {[%emt 00:00:10]} 29.
Be1 {[%clk 00:08:11]} {[%emt 00:00:23]} Rc8 {[%clk 00:12:46]} {[%emt 00:00:01]}
30. g4 {[%clk 00:07:27]} {[%emt 00:00:49]} Rc2+ {[%clk 00:12:49]} {[%emt
00:00:02]} 31. Kd3 {[%clk 00:07:21]} {[%emt 00:00:10]} Rxb2 {[%clk 00:12:52]}
{[%emt 00:00:02]} 32. h4 {[%clk 00:07:00]} {[%emt 00:00:27]} d6 {[%clk
00:12:39]} {[%emt 00:00:17]} 33. h5 {[%clk 00:06:27]} {[%emt 00:00:38]} Rxa2
{[%clk 00:12:29]} {[%emt 00:00:15]} 34. hxg6 {[%clk 00:05:57]} {[%emt
00:00:35]} hxg6 {[%clk 00:12:33]} {[%emt 00:00:01]} 35. Bh4 {[%clk 00:05:23]}
{[%emt 00:00:39]} Rd2+ {[%clk 00:12:34]} {[%emt 00:00:03]} 0-1

[Event "Open NK Rapid 2025"]
[Site "Helmond, Netherlands"]
[Date "2025.05.03"]
[Round "1.21"]
[White "Van Roon, Sjoerd"]
[Black "Shalai, Marian"]
[Result "1-0"]
[TimeControl "15+5"]
[WhiteFideId "1051075"]
[WhiteElo "2179"]
[BlackElo "1746"]

1. e4 {[%clk 00:15:08]} {[%emt 00:00:02]} e5 {[%clk 00:14:02]} {[%emt
00:01:09]} 2. Nf3 {[%clk 00:15:11]} {[%emt 00:00:02]} Nc6 {[%clk 00:14:01]}
{[%emt 00:00:06]} 3. Bc4 {[%clk 00:15:09]} {[%emt 00:00:07]} Bc5 {[%clk
00:13:59]} {[%emt 00:00:07]} 4. c3 {[%clk 00:15:12]} {[%emt 00:00:01]} Nf6
{[%clk 00:13:59]} {[%emt 00:00:05]} 5. d3 {[%clk 00:15:16]} {[%emt 00:00:02]}
d6 {[%clk 00:13:31]} {[%emt 00:00:33]} 6. Nbd2 {[%clk 00:15:15]} {[%emt
00:00:06]} Na5 {[%clk 00:13:23]} {[%emt 00:00:12]} 7. b4 {[%clk 00:14:58]}
{[%emt 00:00:23]} Bxf2+ {[%clk 00:13:10]} {[%emt 00:00:17]} 8. Kxf2 {[%clk
00:14:56]} {[%emt 00:00:08]} Ng4+ {[%clk 00:13:11]} {[%emt 00:00:04]} 9. Ke2
{[%clk 00:14:44]} {[%emt 00:00:16]} Nxc4 {[%clk 00:13:06]} {[%emt 00:00:10]} 10.
Nxc4 {[%clk 00:14:46]} {[%emt 00:00:04]} O-O {[%clk 00:13:07]} {[%emt
00:00:04]} 11. h3 {[%clk 00:13:26]} {[%emt 00:01:25]} Nf6 {[%clk 00:13:03]}
{[%emt 00:00:08]} 12. Bg5 {[%clk 00:13:15]} {[%emt 00:00:17]} Qe7 {[%clk
00:11:57]} {[%emt 00:01:10]} 13. Ne3 {[%clk 00:13:09]} {[%emt 00:00:12]} Qe6
{[%clk 00:11:44]} {[%emt 00:00:18]} 14. Bxf6 {[%clk 00:12:39]} {[%emt
00:00:35]} Qxf6 {[%clk 00:11:46]} {[%emt 00:00:01]} 15. Rf1 {[%clk 00:12:42]}
{[%emt 00:00:04]} Qg6 {[%clk 00:11:07]} {[%emt 00:00:43]} 16. g4 {[%clk
00:12:35]} {[%emt 00:00:12]} Qh6 {[%clk 00:10:55]} {[%emt 00:00:17]} 17. Qe1
{[%clk 00:12:30]} {[%emt 00:00:10]} g6 {[%clk 00:10:13]} {[%emt 00:00:48]} 18.
Qh4 {[%clk 00:12:25]} {[%emt 00:00:10]} Qg7 {[%clk 00:09:53]} {[%emt 00:00:25]}
19. g5 {[%clk 00:12:14]} {[%emt 00:00:16]} Bd7 {[%clk 00:09:29]} {[%emt
00:00:28]} 20. Nd5 {[%clk 00:12:11]} {[%emt 00:00:09]} Be6 {[%clk 00:08:47]}
{[%emt 00:00:47]} 21. Nf6+ {[%clk 00:12:09]} {[%emt 00:00:07]} Kh8 {[%clk
00:08:50]} {[%emt 00:00:02]} 22. c4 {[%clk 00:12:05]} {[%emt 00:00:10]} Rad8
{[%clk 00:07:17]} {[%emt 00:01:37]} 23. Qg3 {[%clk 00:11:59]} {[%emt 00:00:11]}
c6 {[%clk 00:05:37]} {[%emt 00:01:44]} 24. a4 {[%clk 00:11:51]} {[%emt
00:00:15]} d5 {[%clk 00:05:22]} {[%emt 00:00:19]} 25. cxd5 {[%clk 00:11:45]}
{[%emt 00:00:11]} cxd5 {[%clk 00:05:21]} {[%emt 00:00:05]} 26. Qxe5 {[%clk
00:11:35]} {[%emt 00:00:15]} dxe4 {[%clk 00:05:08]} {[%emt 00:00:18]} 27. Nxe4
{[%clk 00:11:25]} {[%emt 00:00:15]} Qxe5 {[%clk 00:04:44]} {[%emt 00:00:28]} 28.
Nxe5 {[%clk 00:11:28]} {[%emt 00:00:03]} Bxh3 {[%clk 00:04:33]} {[%emt
00:00:16]} 29. Nxf7+ {[%clk 00:11:07]} {[%emt 00:00:27]} Rxf7 {[%clk 00:04:30]}
{[%emt 00:00:06]} 30. Rxf7 {[%clk 00:11:10]} {[%emt 00:00:04]} Re8 {[%clk
00:04:24]} {[%emt 00:00:11]} 31. Rh1 {[%clk 00:11:09]} {[%emt 00:00:06]} Bg4+
{[%clk 00:04:19]} {[%emt 00:00:10]} 32. Kf2 {[%clk 00:11:12]} {[%emt 00:00:01]}
h5 {[%clk 00:04:16]} {[%emt 00:00:09]} 33. Nf6 {[%clk 00:11:01]} {[%emt
00:00:16]} 1-0

[Event "Open NK Rapid 2025"]
[Site "Helmond, Netherlands"]
[Date "2025.05.03"]
[Round "1.22"]
[White "Boskemper, Danny"]
[Black "Kazarjan, Gachatur"]
[Result "0-1"]
[TimeControl "15+5"]
[WhiteFideId "40100162"]
[BlackFideId "1068750"]
[WhiteElo "1743"]
[BlackElo "2155"]

1. d4 {[%clk 00:15:07]} {[%emt 00:00:02]} d5 {[%clk 00:15:08]} {[%emt
00:00:02]} 2. Nf3 {[%clk 00:15:09]} {[%emt 00:00:03]} c5 {[%clk 00:15:11]}
{[%emt 00:00:02]} 3. e3 {[%clk 00:15:10]} {[%emt 00:00:04]} e6 {[%clk
00:15:12]} {[%emt 00:00:04]} 4. b3 {[%clk 00:15:11]} {[%emt 00:00:04]} Be7
{[%clk 00:15:13]} {[%emt 00:00:05]} 5. Bb2 {[%clk 00:15:00]} {[%emt 00:00:15]}
Nf6 {[%clk 00:15:15]} {[%emt 00:00:03]} 6. Bd3 {[%clk 00:14:58]} {[%emt
00:00:06]} Nbd7 {[%clk 00:15:15]} {[%emt 00:00:06]} 7. O-O {[%clk 00:14:52]}
{[%emt 00:00:11]} b6 {[%clk 00:15:18]} {[%emt 00:00:02]} 8. Nbd2 {[%clk
00:14:45]} {[%emt 00:00:12]} Bb7 {[%clk 00:15:19]} {[%emt 00:00:04]} 9. Ne5
{[%clk 00:14:40]} {[%emt 00:00:10]} O-O {[%clk 00:15:11]} {[%emt 00:00:14]} 10.
f4 {[%clk 00:14:36]} {[%emt 00:00:08]} Ne4 {[%clk 00:15:13]} {[%emt 00:00:03]}
11. Rf3 {[%clk 00:13:56]} {[%emt 00:00:44]} Rc8 {[%clk 00:14:57]} {[%emt
00:00:21]} 12. Rh3 {[%clk 00:13:38]} {[%emt 00:00:23]} f5 {[%clk 00:14:17]}
{[%emt 00:00:46]} 13. Nxd7 {[%clk 00:10:27]} {[%emt 00:03:16]} Qxd7 {[%clk
00:14:15]} {[%emt 00:00:07]} 14. Nf3 {[%clk 00:10:26]} {[%emt 00:00:06]} Bf6
{[%clk 00:14:08]} {[%emt 00:00:12]} 15. Ne5 {[%clk 00:10:21]} {[%emt 00:00:11]}
Bxe5 {[%clk 00:13:24]} {[%emt 00:00:48]} 16. dxe5 {[%clk 00:09:23]} {[%emt
00:01:03]} Qf7 {[%clk 00:12:46]} {[%emt 00:00:43]} 17. Bxe4 {[%clk 00:07:15]}
{[%emt 00:02:13]} dxe4 {[%clk 00:12:06]} {[%emt 00:00:45]} 18. g4 {[%clk
00:06:22]} {[%emt 00:00:58]} Rfd8 {[%clk 00:11:43]} {[%emt 00:00:28]} 19. Qe2
{[%clk 00:06:07]} {[%emt 00:00:19]} fxg4 {[%clk 00:10:47]} {[%emt 00:01:02]} 20.
Qxg4 {[%clk 00:06:07]} {[%emt 00:00:05]} Rd2 {[%clk 00:10:33]} {[%emt
00:00:19]} 21. Rc1 {[%clk 00:06:01]} {[%emt 00:00:10]} Ba6 {[%clk 00:10:10]}
{[%emt 00:00:28]} 22. Bc3 {[%clk 00:05:14]} {[%emt 00:00:53]} Re2 {[%clk
00:09:51]} {[%emt 00:00:24]} 23. Rh6 {[%clk 00:04:06]} {[%emt 00:01:13]} Re8
{[%clk 00:09:44]} {[%emt 00:00:11]} 24. Rh3 {[%clk 00:03:35]} {[%emt 00:00:37]}
g6 {[%clk 00:09:13]} {[%emt 00:00:37]} 25. Rg3 {[%clk 00:03:26]} {[%emt
00:00:13]} Qd7 {[%clk 00:07:58]} {[%emt 00:01:20]} 26. h4 {[%clk 00:03:16]}
{[%emt 00:00:15]} Re7 {[%clk 00:07:16]} {[%emt 00:00:47]} 27. h5 {[%clk
00:02:54]} {[%emt 00:00:26]} Rg7 {[%clk 00:07:20]} {[%emt 00:00:02]} 28. h6
{[%clk 00:02:03]} {[%emt 00:00:56]} Rf7 {[%clk 00:07:24]} {[%emt 00:00:01]} 29.
Qh3 {[%clk 00:01:36]} {[%emt 00:00:32]} Rf5 {[%clk 00:05:47]} {[%emt 00:01:42]}
30. Rg5 {[%clk 00:00:45]} {[%emt 00:00:55]} Rxc2 {[%clk 00:05:43]} {[%emt
00:00:09]} 31. Rxg6+ {[%clk 00:00:11]} {[%emt 00:00:38]} hxg6 {[%clk 00:05:43]}
{[%emt 00:00:07]} 32. Rxc2 {[%clk 00:00:15]} {[%emt 00:00:01]} Qd1+ {[%clk
00:05:38]} {[%emt 00:00:10]} 33. Be1 {[%clk 00:00:18]} {[%emt 00:00:02]} Qxe1+
{[%clk 00:05:30]} {[%emt 00:00:13]} 34. Kh2 {[%clk 00:00:21]} {[%emt 00:00:01]}
Rh5 {[%clk 00:05:34]} {[%emt 00:00:02]} 35. Rc1 {[%clk 00:15:05]} {[%emt
00:00:26]} 0-1